Workbook

Sheet Sheet1
B1: Coriolis meter testing service request (Canadian Micro Motion customers)
B2: Company name | G2: Address | K2: Date (Yr/Mth/Day) | S2: Sensor series | T2: Qmin | U2: Qmax | V2: Pressure | W2: Pressure unit | X2: tempreture | Y2: Flow rate | Z2: Gas density | AA2: Mass flow | AB2: flang to flang
S3: CMF050 Metric (Unavailable) | T3: 3 | U3: 60 | V3: 10300 | W3: kPa | X3: °C | Y3: E³m³/hr | Z3: kg/m³ | AA3: kg/hr | AB3: mm
B4: Main contact name | G4: Email address | K4: Phone number | S4: CMF050 Imperial (Unavailable) | T4: 6.6 | U4: =U3*2.204 -> 132.24 | V4: 1494 | W4: Psig | X4: °F | Y4: ACFH | Z4: lb/ft³ | AA4: lb/hr | AB4: inches
S5: CMF100 Metric (Unavailable) | T5: 5.5 | U5: 110 | V5: 10000 | W5: kPa | X5: °C | Y5: E³m³/hr | Z5: kg/m³ | AA5: kg/hr | AB5: mm
B6: Shipping contact name ( check if same as main contact) | G6: Email address | K6: Phone number | S6: CMF100 Imperial (Unavailable) | T6: =T5*2.204 -> 12.122 | U6: =U5*2.204 -> 242.44 | V6: 1450 | W6: Psig | X6: °F | Y6: ACFH | Z6: lb/ft³ | AA6: lb/hr | AB6: inches
S7: CMF200 Metric | T7: 8.75 | U7: 175 | V7: 10900 | W7: kPa | X7: °C | Y7: E³m³/hr | Z7: kg/m³ | AA7: kg/hr | AB7: mm
B8: Billing address | G8: City | I8: Province | K8: Postal code | S8: CMF200 Imperial | T8: =T7*2.204 -> 19.285 | U8: =U7*2.204 -> 385.7 | V8: 1580 | W8: Psig | X8: °F | Y8: ACFH | Z8: lb/ft³ | AA8: lb/hr | AB8: inches
S9: CMF300 Metric (Unavailable) | T9: 16.75 | U9: 335 | V9: 11900 | W9: kPa | X9: °C | Y9: E³m³/hr | Z9: kg/m³ | AA9: kg/hr | AB9: mm
B10: Meter owner company name and address ( check if same as billing address) | G10: City | I10: Province | K10: Postal code | S10: CMF300 Imperial (Unavailable) | T10: =T9*2.204 -> 36.917 | U10: =U9*2.204 -> 738.34 | V10: 1725 | W10: Psig | X10: °F | Y10: ACFH | Z10: lb/ft³ | AA10: lb/hr | AB10: inches
S11: CMF350 Metric (Unavailable) | T11: 42.5 | U11: 850 | V11: 10200 | W11: kPa | X11: °C | Y11: E³m³/hr | Z11: kg/m³ | AA11: kg/hr | AB11: mm
B12: Ship to address when meters complete ( check if same as billing address) | G12: City | I12: Province | K12: Postal code | S12: CMF350 Imperial (Unavailable) | T12: =T11*2.204 -> 93.67 | U12: =U11*2.204 -> 1873.4 | V12: 1479 | W12: Psig | X12: °F | Y12: ACFH | Z12: lb/ft³ | AA12: lb/hr | AB12: inches
S13: CMF400 Metric (Unavailable) | T13: 85 | U13: 1700 | V13: 10300 | W13: kPa | X13: °C | Y13: E³m³/hr | Z13: kg/m³ | AA13: kg/hr | AB13: mm
B14: Witness test information | S14: CMF400 Imperial (Unavailable) | T14: =T13*2.204 -> 187.34 | U14: =U13*2.204 -> 3746.8 | V14: 1494 | W14: Psig | X14: °F | Y14: ACFH | Z14: lb/ft³ | AA14: lb/hr | AB14: inches
B15: Witness test (additional cost)
B17: Complete name and contact information of witness(es). Add additional names under additional information section.
B18: Contact name | G18: Email address | K18: Cell phone number
B20: Meter Information | I20: Historical or Expected Operating Conditions
B21: Manufacturer | H21: 
B22: Sensor Series | E22: Please choose | I22: Meter Orientation | K22: Horizontal, tubes up
B23: Nominal Pipe Size | H23:  | I23: Maximum Pressure | K23: =IFERROR(INDEX(V3:V14,MATCH(E22,S3:S14,0)),"") ->  | L23: =IFERROR(INDEX(W3:W14,MATCH(E22,S3:S15,0)),"") -> 
B24: Flange to flange measurement | F24: =IFERROR(INDEX(AB3:AB14,MATCH(E22,S3:S14,0)),"") ->  | I24: Average Pressure | L24: =IFERROR(INDEX(W3:W14,MATCH(E22,S3:S15,0)),"") ->  | O24: Metric | P24: Imperial | Q24: Sensor series | R24: Qmin lb/min or kg/min | S24: Qmax lb/min or kg/min | T24: Pmax psig or kPa | U24: Pmax Barg | V24: Pipe size | W24: Meter output | X24: Meter orientation | Y24: Manufacturer | Z24: Transmitter model
B25: ANSI Rating | E25: 300# | H25:  | I25: Average Temperature | L25: =IFERROR(INDEX(X3:X14,MATCH(E22,S3:S14,0)),"") ->  | O25: kPa | P25: Psig | Q25: CMF050 Metric | R25: 3 | S25: 60 | T25: 10815 | V25: ½” | W25: Analog | X25: Horizontal, tubes up | Y25: Micro Motion | Z25: 2700 MVD
B26: Sensor Model # | I26: Maximum Mass Flow | L26: =IFERROR(INDEX(AA3:AA14,MATCH(E22,S3:S14,0)),"") ->  | O26: °C | P26: °F | Q26: CMF050 Imperial | R26: 7 | S26: 132 | T26: 1545 | V26: ¾” | W26: Frequency | X26: Vertical, tubes flag position | Z26: 3500
B27: Sensor Serial # | I27: Average Mass Flow | L27: =IFERROR(INDEX(AA3:AA14,MATCH(E22,S3:S14,0)),"") ->  | O27: E³m³/hr | P27: ACFH | Q27: CMF100 Metric | R27: 5.5 | S27: 110 | T27: 10500 | V27: 1” | W27: Modbus | Z27: 3700
B28: Sensor Badge# | I28: Gas Density @ Pb & Tb | L28: =IFERROR(INDEX(Z3:Z14,MATCH(E22,S3:S14,0)),"") ->  | O28: kg/m³ | P28: lb/ft³ | Q28: CMF100 Imperial | R28: 12 | S28: 243 | T28: 1500 | V28: 1 ½” | Z28: 5700 MVD
B29: Transmitter Model # | H29:  | I29: (0.713 may be used for sweet gas) | O29: kg/min | P29: lb/hr | Q29: CMF200 Metric | R29: 8.75 | S29: 175 | T29: 11445 | V29: 1 ¾” | Z29: RFT 9739
B30: Transmitter Serial # | Q30: CMF200 Imperial | R30: 19 | S30: 386 | T30: 1635 | V30: 2”
B31: Transmitter Badge # | Q31: CMF300 Metric | R31: 16.75 | S31: 335 | T31: 12495 | V31: 3”
B32: Bi-directional calibration | Q32: CMF300 Imperial | R32: 37 | S32: 739 | T32: 1785 | V32: 4”
B33: AGA Report No.11, Measurement of Natural Gas by Coriolis Meter indicates that “the flow calibration need only be done in one flow direction. The meter factor applies in both directions.” FortisBC flow calibrations will be for one direction only, unless bi-directional is specifically requested below. | Q33: CMF350 Metric | R33: 42.5 | S33: 850 | T33: 10710
Q34: CMF350 Imperial | R34: 94 | S34: 1874 | T34: 1530
B35: Shipping requirements | Q35: CMF400 Metric | R35: 85 | S35: 1700 | T35: 10815
B36: Meters must be shipped with electronics (sensing tubes and transmitter). | Q36: CMF400 Imperial | R36: 187 | S36: 3748 | T36: 1545
B37: Preferred shipping company (name/phone number) | H37: Carrier account number (If applicable)
B39: Turnaround | H39: Required date (Yr/Mth/Day)
B41: To submit your request, or if you have any questions, please contact FortisBC Measurement.
B42: All quotations will be returned by e-mail
B43: Toll Free: 1-800-667-4338 | E43: Web: fortisbc.com/measurement | I43: E-mail: measurement@fortisbc.com
B44: Additional information (please use separate sheet if needed) - Use Alt+Enter to create separate line items.
B46: Calibration requirements
B47: The meter at each of the following test points (10%, 25%, 50%, 75% and 100% of the customer specified Qmax) at the average in service pressure anticipated for the meter's intended service. Additional test points, or verification points if the meter is adjusted, may be added if needed.
B48: Data input
B49: Customer Specified Qmax | G49: =IFERROR(INDEX(AA3:AA14,MATCH(E22,S3:S14,0)),"") -> 
B50: Maximum frequency output | G50: Hz
B51: Meter output | H51: 
B52: Calibration Test Instructions
B53: Calibration
B55: Calibration pressure | G55: =IFERROR(INDEX(W3:W14,MATCH(E22,S3:S15,0)),"") -> 
B56: Test Points:
B57: 1 (10% of Qmax) | E57: =IFERROR((0.1*E49),"") -> 0 | G57: =IFERROR(INDEX(AA3:AA14,MATCH(E22,S3:S14,0)),"") -> 
B58: 2 (25% of Qmax) | E58: =IFERROR((0.25*E49),"") -> 0 | G58: =IFERROR(INDEX(AA3:AA14,MATCH(E22,S3:S14,0)),"") -> 
B59: 3 (50% of Qmax) | E59: =IFERROR((0.5*E49),"") -> 0 | G59: =IFERROR(INDEX(AA3:AA14,MATCH(E22,S3:S14,0)),"") -> 
B60: 4 (75% of Qmax) | E60: =IFERROR((0.75*E49),"") -> 0 | G60: =IFERROR(INDEX(AA3:AA14,MATCH(E22,S3:S14,0)),"") -> 
B61: 5 (100% of Qmax) | E61: =IFERROR((1*E49),"") -> 0 | G61: =IFERROR(INDEX(AA3:AA14,MATCH(E22,S3:S14,0)),"") -> 
B62: Additional test point
B63: 6 (1st Additional point) | G63: =IFERROR(INDEX(AA3:AA14,MATCH(E22,S3:S14,0)),"") -> 
B64: 7 (2nd Additional point) | G64: =IFERROR(INDEX(AA3:AA14,MATCH(E22,S3:S14,0)),"") -> 
B65: 8 (3rd Additional point) | G65: =IFERROR(INDEX(AA3:AA14,MATCH(E22,S3:S14,0)),"") -> 
B66: 9 (4th Additional point) | G66: =IFERROR(INDEX(AA3:AA14,MATCH(E22,S3:S14,0)),"") -> 
B67: Verification points:
B68: 1 (1st Verfication point) | G68: =IFERROR(INDEX(AA3:AA14,MATCH(E22,S3:S14,0)),"") -> 
B69: 2 (2nd Verification point) | G69: =IFERROR(INDEX(AA3:AA14,MATCH(E22,S3:S14,0)),"") -> 
B70: Meter details
N71: 150# | O71: cm
B72: Provide measured fluids/gases. (ie natural gas, CO2, etc.): | N72: 300# | O72: inches
B73: Seal meter (for custody transfer) | N73: 600#
B74: New meters receive a 6 year seal and re-verified meters receive a 4 year seal. Meters must be a Measurement Canada approved device. Calibration will include graph of as found performance.
B77: Where do original electronic certificates get emailed to
K79: Document Number: QA-229 Issue Date: July 2021 Revision:4
B80: 2765e 21/07
